bitfinex-derivatives/quotes_ETHF0:USTF0_20260201
["timestamp","ask_amount","ask_price","bid_price","bid_amount"]
[1769949625663,4.94670951,2401.1,2399.8,0.15563446]
[1769949626562,3.46702281,2401.1,2399.9,0.14934278]
[1769949626862,3.46702281,2401.1,2400.0,0.14934278]
[1769949627763,0.00402281,2401.1,2400.0,0.14934278]
[1769949628362,8.43390106,2401.5,2400.0,0.14934278]
[1769949628766,8.43390106,2401.5,2400.1,0.15008232]
[1769949629268,8.4376377,2401.5,2400.1,0.15008232]
[1769949629769,3.46673664,2401.5,2400.1,0.15008232]
[1769949630965,0.00373664,2401.5,2400.1,2.63510426]
[1769949631170,19.5684302,2401.9,2400.8,0.14990079]
[1769949631171,13.37776785,2401.9,2400.8,0.14990079]
[1769949631466,9.91476785,2401.9,2400.8,0.14990079]
[1769949632068,0.02709834,2402.0,2400.8,0.14990079]
[1769949632372,0.4159,2404.3,2400.8,0.14990079]
[1769949632373,4.9426867,2402.7,2401.0,0.14796135]
[1769949632572,5.18066831,2402.8,2401.1,0.14796135]
[1769949633173,0.03267568,2402.7,2401.1,0.14796135]
[1769949633373,0.03696328,2402.7,2401.1,0.15316484]
[1769949633974,0.0042876,2402.7,2401.2,0.14796135]
[1769949634269,0.0042876,2402.7,2401.4,0.14796135]
[1769949635672,0.0042876,2402.7,2401.4,2.63298329]
[1769949635871,0.02894443,2403.3,2401.5,0.14897775]
[1769949636870,0.03297549,2403.3,2401.5,0.14897775]
[1769949638171,0.00403106,2403.3,2401.7,0.16231582]
[1769949638770,0.00403106,2403.3,2401.7,2.64733776]
[1769949638970,0.00403106,2403.3,2401.8,0.16231582]
[1769949640868,0.04134762,2403.3,2401.8,0.16231582]
[1769949643470,0.03859713,2403.1,2401.8,0.16231582]
[1769949643868,3.463,2403.2,2401.8,0.16231582]
[1769949645179,3.46703106,2403.3,2401.8,0.16231582]
[1769949646081,0.03863883,2403.2,2401.8,0.16231582]
[1769949648073,3.46703106,2403.3,2401.8,0.16231582]
[1769949650177,3.46703106,2403.3,2401.9,0.15589664]
[1769949651182,0.00403106,2403.3,2401.9,0.15589664]
[1769949651373,0.00403106,2403.3,2402.2,0.15589664]
[1769949651578,0.00403106,2403.3,2402.4,0.15589664]
[1769949653085,0.03862289,2403.3,2402.4,0.15589664]
[1769949653383,0.03862289,2403.3,2402.0,0.15589664]
[1769949656180,0.03652252,2403.2,2402.0,0.15589664]
[1769949660178,0.00403106,2403.3,2402.2,0.15589664]
[1769949660588,0.03728175,2403.8,2402.7,0.15589664]
[1769949661578,0.24547175,2403.6,2402.5,2.48686105]
[1769949661783,0.03728175,2403.5,2402.4,0.15589664]
[1769949662183,0.03728175,2403.5,2402.4,2.64275769]
[1769949663082,0.03640292,2403.4,2402.1,2.64275769]
[1769949663285,0.03640292,2403.4,2402.1,0.15589664]
[1769949663588,0.03640292,2403.3,2402.1,0.15589664]
[1769949664087,0.03640292,2403.3,2402.0,2.48686105]
[1769949664487,0.03640292,2403.3,2402.2,0.15589664]
[1769949664686,0.03640292,2403.3,2402.3,0.15589664]
[1769949667491,3.463,2403.2,2402.3,0.15589664]
[1769949667690,0.03640292,2403.3,2402.3,0.15589664]
[1769949667887,3.49897747,2403.6,2402.5,2.64835462]
[1769949668096,3.49897747,2403.6,2402.6,0.16149357]
[1769949672896,0.03598024,2403.5,2402.6,0.16149357]
[1769949673196,0.03598024,2403.4,2402.5,2.48686105]
[1769949673392,0.03598024,2403.3,2402.2,2.48686105]
[1769949673588,0.03598024,2403.3,2402.1,2.64835462]
[1769949673792,0.20822,2403.4,2402.0,3.86676199]
[1769949673793,0.03598024,2403.0,2402.0,2.48686105]
[1769949673994,0.03598024,2403.0,2401.8,6.51511661]
[1769949674193,0.03598024,2403.0,2401.8,2.64835462]
[1769949674392,0.03598024,2403.0,2401.9,0.16149357]
[1769949677696,0.20824,2403.1,2401.9,0.16149357]
[1769949677896,0.20824,2403.1,2402.0,0.16149357]
[1769949678895,3.67124,2403.1,2402.0,0.16149357]
[1769949679295,3.67124,2403.1,2402.1,0.16149357]
[1769949680200,3.67124,2403.1,2402.2,0.16149357]
[1769949682302,3.67124,2403.1,2402.3,0.16149357]
[1769949682896,0.20824,2403.1,2402.3,0.16149357]
[1769949683099,0.20824,2403.1,2402.4,0.16149357]
[1769949683998,0.03341791,2403.3,2402.4,0.16149357]
[1769949684197,0.03313153,2403.6,2402.7,0.16149357]
[1769949687703,0.03313153,2403.6,2402.8,0.16149357]
[1769949687896,0.03313153,2403.6,2402.8,0.16648804]
[1769949690908,0.20819,2403.7,2402.8,0.16648804]
[1769949691108,0.20819,2403.7,2402.9,0.16149357]
[1769949691601,0.00345377,2403.8,2402.9,0.16149357]
[1769949691807,0.00345377,2403.8,2402.9,2.64835462]
[1769949692009,0.00345377,2403.8,2403.0,0.16149357]
[1769949694809,0.03418799,2404.5,2403.4,0.16149357]
[1769949695009,0.03418799,2404.4,2403.4,0.16149357]
[1769949695611,0.03732773,2404.4,2403.4,0.16149357]
[1769949697608,0.00313974,2404.4,2402.9,0.16332608]
[1769949697809,0.20819,2403.7,2402.8,0.00499447]
[1769949698006,0.20819,2403.6,2402.8,0.00499447]
[1769949698210,0.20819,2403.6,2402.5,0.16332608]
[1769949699111,0.20819,2403.6,2402.5,0.16694943]
[1769949704617,2.65014,2404.2,2402.5,0.16694943]
[1769949705120,0.20814,2404.2,2402.6,0.1661735]
[1769949705318,0.20814,2404.2,2402.7,0.1661735]
[1769949705919,0.20814,2404.2,2402.8,0.1661735]
[1769949706110,0.20816,2404.0,2402.8,0.1661735]
[1769949707013,6.25,2404.3,2402.5,2.65715271]
[1769949707316,0.20821,2403.4,2402.5,0.17029166]
[1769949708115,0.20823,2403.2,2402.5,0.00362335]
[1769949709212,0.20825,2403.0,2401.9,0.16615175]
[1769949709623,6.18522642,2402.8,2401.3,0.16615175]
[1769949709818,0.2083,2402.4,2401.3,0.16615175]
[1769949710420,0.00458075,2402.4,2401.3,0.17102707]
[1769949710628,0.00458075,2402.4,2401.3,0.00487532]
[1769949710823,6.18980717,2402.4,2401.0,0.16589059]
[1769949711421,0.00458075,2402.4,2401.0,0.16589059]
[1769949711813,0.00458075,2402.4,2401.0,0.16934345]
[1769949712019,0.20834,2401.9,2401.0,0.00345286]
[1769949713120,2.65034,2401.9,2401.0,0.00345286]
[1769949713420,0.20835,2401.8,2400.7,0.16589059]
[1769949713619,6.18522642,2401.8,2400.0,0.1]
[1769949713919,0.20845,2400.7,2399.4,0.16528867]
[1769949714420,0.00332106,2400.7,2399.4,0.16961896]
[1769949714619,0.00332106,2400.7,2399.6,0.1653109]
[1769949716024,0.20849,2400.2,2399.5,2.082]
[1769949716623,0.00332106,2400.7,2399.4,0.00433029]
[1769949716816,0.00332106,2400.7,2399.4,1e-08]
[1769949717022,0.20852,2399.9,2399.4,1e-08]
[1769949717818,0.20852,2399.8,2399.4,1e-08]
[1769949718014,0.00332106,2400.7,2397.8,0.16342605]
[1769949718222,0.00332106,2400.7,2397.7,0.78503827]
[1769949718223,0.20855,2399.6,2398.0,0.16328154]
[1769949719025,0.20855,2399.6,2398.0,0.16752384]
[1769949719722,0.20848,2400.3,2398.0,0.16752384]
[1769949720120,0.20849,2400.2,2398.0,0.16752384]
[1769949720526,0.00332106,2400.7,2398.2,0.1632723]
[1769949721426,0.20852,2399.9,2398.2,0.1632723]
[1769949722623,0.20852,2399.9,2398.4,0.16347291]
[1769949722827,0.20852,2399.8,2398.6,0.16347291]
[1769949723028,0.20854,2399.6,2398.6,0.16347291]
[1769949724324,0.20848,2400.3,2398.6,0.16347291]
[1769949724529,0.20849,2400.2,2398.6,0.16347291]
[1769949725126,0.00332106,2400.7,2398.6,0.16347291]
[1769949730233,0.00332106,2400.7,2398.6,0.37210291]
[1769949730432,0.20838,2401.5,2399.0,0.16220189]
[1769949730738,0.21114317,2401.4,2399.2,0.16220189]
[1769949730939,0.00276317,2401.3,2399.4,0.16220189]
[1769949731437,0.0063206,2401.3,2399.4,0.16220189]
[1769949731631,0.00355743,2401.3,2399.4,0.16220189]
[1769949732134,0.0063206,2401.3,2399.6,0.16220189]
[1769949738840,0.0063206,2401.3,2399.5,2.48686105]
[1769949738841,0.00324225,2401.2,2399.8,0.16196235]
[1769949739042,0.00324225,2401.2,2399.8,0.16515152]
[1769949739243,0.00324225,2401.1,2399.9,4.69096235]
[1769949739547,0.00324225,2401.1,2400.0,0.16196235]
[1769949740446,0.20841,2401.2,2400.0,0.16196235]
[1769949742251,0.00355743,2401.3,2400.0,0.16196235]
[1769949743347,0.00355743,2401.3,2400.0,2.6488234]
[1769949743548,0.00355743,2401.3,2400.1,0.16179074]
[1769949744249,0.20836,2401.8,2400.3,0.16183641]
[1769949744445,0.20836,2401.8,2400.4,0.1600577]
[1769949745351,0.21127721,2401.8,2400.4,0.1600577]
[1769949746347,0.21849302,2401.8,2400.4,0.1600577]
[1769949746546,0.00721581,2401.5,2400.5,4.68897557]
[1769949746747,0.00721581,2401.5,2400.6,0.15997557]
[1769949747149,0.00721581,2401.4,2400.3,0.15997557]
[1769949747449,0.00721581,2401.4,2400.4,0.15997557]
[1769949748152,0.21560581,2401.4,2400.4,0.15997557]
[1769949749544,0.20839,2401.4,2400.4,0.15997557]
[1769949749750,0.00291721,2401.8,2400.4,0.15997557]
[1769949752350,0.00291721,2401.8,2400.5,0.15796532]
[1769949754053,0.00291721,2401.8,2400.5,2.64482637]
[1769949754249,0.00291721,2401.8,2400.6,0.15795131]
[1769949754954,0.00291721,2401.8,2400.7,2.64481236]
[1769949755158,0.00291721,2401.8,2400.8,0.15795131]
[1769949757459,0.00291721,2401.8,2401.0,0.15798741]
[1769949757651,0.00291721,2401.8,2401.1,2.93098741]
[1769949757856,0.00291721,2401.8,2401.2,0.15798741]
[1769949760660,0.00291721,2401.8,2401.2,2.93298741]
[1769949761061,0.00291721,2401.8,2401.3,0.1582258]
[1769949761262,0.00291721,2401.8,2401.3,2.9332258]
[1769949763659,0.00291721,2401.8,2401.3,0.1582258]
[1769949764862,0.01085625,2402.4,2401.3,0.1582258]
[1769949765160,0.01085625,2402.3,2401.3,0.1582258]
[1769949765957,0.01085625,2402.2,2401.3,0.1582258]
[1769949766156,0.21917625,2402.2,2401.3,0.1582258]
[1769949768766,0.20835,2401.9,2401.3,0.1582258]
[1769949769068,0.20835,2401.9,2401.1,0.15779296]
[1769949770868,0.00382523,2402.3,2401.2,2.64458778]
[1769949771067,0.20829,2402.5,2401.2,2.64458778]
[1769949771068,0.20829,2402.5,2401.4,0.15772673]
[1769949771269,0.20829,2402.5,2401.6,2.64267516]
[1769949771567,0.20829,2402.5,2401.8,0.15581411]
[1769949771973,3.463,2403.0,2401.9,0.15581411]
[1769949772175,0.21349118,2403.0,2401.9,0.16030031]
[1769949773975,0.21349118,2403.0,2402.1,0.15582485]
[1769949774170,0.22894964,2403.0,2402.1,2.92882485]
[1769949774470,0.21349118,2403.0,2402.2,0.15583538]
[1769949776071,0.21349118,2403.0,2402.3,0.15583538]
[1769949776370,9.87616958,2403.6,2402.3,0.15583538]
[1769949776371,0.01653281,2403.5,2402.3,0.15583538]
[1769949776566,0.01653281,2403.5,2402.5,0.1552982]
[1769949777272,0.22474281,2403.4,2402.5,0.1552982]
[1769949778471,0.01685462,2403.3,2402.5,0.1552982]
[1769949778865,0.01685462,2403.2,2402.5,0.1552982]
[1769949781879,3.463,2403.1,2402.5,0.1552982]
[1769949782576,3.67122,2403.3,2402.5,0.1552982]
[1769949782773,0.22497802,2403.2,2402.3,0.1551906]
[1769949782968,0.01674802,2402.8,2402.0,1.1551906]
[1769949783375,0.01674802,2402.8,2402.0,1.0]
[1769949783376,0.20828,2402.6,2402.0,1.0]
[1769949783575,0.22502802,2402.6,2402.0,1.0]
[1769949783779,0.22502802,2402.6,2402.3,0.62763927]
[1769949783984,0.01674802,2402.5,2402.0,1.0]
[1769949784281,0.22504802,2402.4,2402.0,1.0]
[1769949784873,0.22504802,2402.4,2401.5,0.1551906]
[1769949785881,0.22504802,2402.4,2401.5,0.15893789]
[1769949787185,0.20831,2402.3,2401.5,0.15893789]
[1769949787380,0.2225945,2402.1,2401.5,0.00374729]
[1769949791594,0.20832,2402.1,2401.5,0.164347]
[1769949792388,0.00537279,2401.8,2401.1,0.16080061]
[1769949792590,0.00537279,2401.8,2399.0,6.389]
[1769949792591,0.20838,2401.5,2400.9,0.16267425]
[1769949792791,0.20839,2401.4,2400.6,0.16267425]
[1769949793094,0.2100155,2401.3,2400.6,0.16267425]
[1769949793294,0.2084,2401.2,2400.6,0.16267425]
[1769949793494,0.21339657,2401.2,2400.6,0.00338365]
[1769949793994,0.20844,2400.7,2400.0,0.163487]
[1769949794994,0.20844,2400.7,2400.0,0.16745811]
[1769949795596,0.20844,2400.7,2400.0,0.00397111]
[1769949796992,0.20845,2400.6,2400.0,0.00397111]
[1769949799098,0.20846,2400.5,2400.0,0.00397111]
[1769949800500,0.20846,2400.5,2400.0,0.17176676]
[1769949802100,0.20842,2401.0,2400.0,0.17176676]
[1769949802306,0.20842,2401.0,2400.2,0.17033889]
[1769949803003,0.00337107,2401.2,2400.2,0.17033889]
[1769949803692,0.20844,2400.8,2400.2,0.17033889]
[1769949805001,0.20844,2400.8,2400.0,0.00397111]
[1769949805901,0.20844,2400.8,2400.0,0.17503135]
[1769949807796,0.20845,2400.7,2400.0,0.00397111]
[1769949807997,0.20846,2400.6,2400.0,0.00397111]
[1769949808197,0.20846,2400.5,2400.0,0.00397111]
[1769949808402,0.15169795,2400.2,2398.8,2.48240961]
[1769949808602,0.15169795,2400.2,2399.0,2.444]
[1769949809500,0.15169795,2400.2,2399.0,2.44917954]
[1769949810194,0.00337107,2401.2,2399.0,2.44917954]
[1769949810195,0.2085,2400.1,2399.0,2.44917954]
[1769949810396,0.2085,2400.1,2399.1,0.15159429]
[1769949813296,0.20851,2400.0,2399.1,0.15159429]
[1769949813501,0.36020795,2400.0,2399.1,0.15159429]
[1769949815006,0.20851,2400.0,2399.1,0.15159429]
[1769949821113,0.20846,2400.6,2399.4,0.15969127]
[1769949821407,0.20846,2400.6,2399.6,0.15969127]
[1769949821609,0.20846,2400.6,2399.7,0.15969127]
[1769949822205,0.20846,2400.6,2399.7,6.83273853]
[1769949822405,0.20846,2400.6,2399.8,0.15969127]
[1769949823309,0.20846,2400.6,2399.9,0.15969127]
[1769949824406,3.67146,2400.6,2399.9,0.15969127]
[1769949824801,3.463,2401.1,2400.0,0.15821282]
[1769949825006,3.82239108,2401.2,2400.1,0.15821282]
[1769949825205,3.82239108,2401.2,2400.2,0.15821282]
[1769949826513,3.82239108,2401.2,2400.3,0.15821282]
[1769949827804,3.67477107,2401.2,2400.3,0.15821282]
[1769949828010,0.15099108,2401.2,2400.3,2.89521282]
[1769949828912,0.15099108,2401.2,2400.4,0.15821282]
[1769949830209,0.14762001,2401.0,2400.0,0.15821282]
[1769949833313,0.14762001,2401.0,2400.0,6.77026246]
[1769949833615,0.14762001,2401.0,2400.1,0.15821282]
[1769949834612,0.14762001,2400.9,2400.1,0.15821282]
[1769949836520,0.20841,2401.1,2400.3,0.15821282]
[1769949837616,0.20841,2401.1,2400.4,0.15821282]
[1769949838220,0.20841,2401.1,2400.5,0.15821282]
[1769949841621,0.35603001,2401.1,2400.5,0.15821282]
[1769949842715,0.14762001,2400.9,2400.2,2.48240961]
[1769949842917,0.14762001,2400.9,2400.0,2.48240961]
[1769949843114,0.14762001,2400.9,2400.0,6.77026246]
[1769949843315,0.20842,2401.0,2400.1,0.15821282]
[1769949846124,0.20842,2401.0,2400.2,0.15821282]
[1769949847224,0.15292863,2400.9,2400.2,0.15821282]
[1769949847423,0.15292863,2400.9,2400.0,0.15311237]
[1769949847627,7.631,2401.5,2400.0,0.15311237]
[1769949847925,4.168,2401.3,2400.0,0.15311237]
[1769949848324,0.20842,2401.0,2400.0,0.15311237]
[1769949848527,3.463,2400.9,2400.0,0.15311237]
[1769949850426,3.463,2400.9,2400.1,0.16165909]
[1769949851528,3.463,2400.9,2400.3,0.16165909]
[1769949852224,3.67642421,2401.0,2400.3,0.16165909]
[1769949855234,3.46800421,2401.0,2400.5,0.16089692]
[1769949855429,3.463,2401.4,2400.5,0.16089692]
[1769949856428,0.00323219,2401.4,2400.5,0.16089692]
[1769949856633,0.00323219,2401.4,2400.7,0.16086132]
[1769949856934,0.00323219,2401.4,2400.7,0.16603011]
[1769949859732,3.463,2401.5,2400.8,0.16129006]
[1769949859937,3.67137,2401.6,2400.8,0.16129006]
[1769949860133,3.46751617,2402.1,2400.8,0.16129006]
[1769949860334,3.46751617,2402.1,2400.9,0.16127282]
[1769949860528,0.00451617,2402.1,2401.1,0.16127282]
[1769949860739,0.00925826,2402.1,2401.1,0.16127282]
[1769949861041,0.00455064,2402.0,2401.2,2.77]
[1769949863344,0.00455064,2402.0,2401.1,0.16127282]
[1769949865144,0.006912,2401.9,2401.1,0.16127282]
[1769949867041,0.00671599,2401.7,2400.8,0.16019015]
[1769949867443,0.00671599,2401.4,2400.7,0.16535894]
[1769949867645,0.21509599,2401.4,2400.7,0.16535894]
[1769949867846,0.20839,2401.3,2400.7,0.00516879]
[1769949871042,0.20839,2401.3,2400.7,0.16416877]
[1769949871247,0.20834,2401.9,2400.7,0.16416877]
[1769949872752,0.00895822,2401.9,2400.7,0.16416877]
[1769949872943,0.21732822,2401.6,2400.7,0.16416877]
[1769949873849,0.20838,2401.5,2400.7,0.16416877]
[1769949874041,0.21733822,2401.5,2400.7,0.16416877]
[1769949875250,0.00750174,2401.4,2400.7,0.16416877]
[1769949875452,3.47050174,2401.4,2400.7,0.00516879]
[1769949876255,0.00750174,2401.4,2400.7,0.00516879]
[1769949876847,0.00750174,2401.4,2400.7,0.16494459]
[1769949877045,0.20838,2401.5,2400.7,0.16494459]
[1769949879158,0.21590355,2401.5,2400.7,0.16494459]
[1769949880053,0.00752355,2401.4,2400.7,0.00516879]
[1769949880259,0.00752355,2401.4,2399.4,9.10032159]
[1769949880260,6.17217509,2401.3,2399.1,7.56641446]
[1769949880453,11.089,2401.0,2398.1,10.64674916]
[1769949880651,2.46868705,2398.3,2397.9,10.64674916]
[1769949880853,2.46868705,2398.3,2396.6,2.083]
[1769949880854,6.84708736,2398.2,2397.0,10.64674916]
[1769949881046,2.46838624,2397.8,2397.1,15.25020299]
[1769949881248,2.46838624,2398.1,2397.5,12.49520299]
[1769949881447,2.46838624,2398.1,2397.6,12.49520299]
[1769949881448,33.20744375,2398.1,2397.6,12.49520299]
[1769949881650,4.93737411,2398.3,2397.6,12.49520299]
[1769949881856,4.93737411,2398.3,2397.7,12.49520299]
[1769949882057,4.93737411,2398.3,2397.5,12.49520299]
[1769949882262,0.20862,2398.8,2397.7,0.17154548]
[1769949882263,4.93737411,2398.5,2397.7,0.17154548]
[1769949882449,4.93737411,2398.5,2397.1,2.76040557]
[1769949882450,0.00441293,2398.5,2397.8,0.17154548]
[1769949883051,0.00441293,2398.5,2398.1,0.17154548]
[1769949883250,0.00441293,2398.5,2397.1,2.76040557]
[1769949883251,0.00441293,2398.5,2397.5,0.17154548]
[1769949883654,0.00441293,2398.5,2397.6,0.17154548]
[1769949884248,0.20867,2398.1,2397.6,0.17154548]
[1769949884657,0.20867,2398.1,2397.8,11.89904193]
[1769949884858,0.20867,2398.1,2397.8,0.16681023]
[1769949885058,0.20867,2398.1,2397.8,11.89904193]
[1769949885254,0.20867,2398.1,2397.9,11.7322317]
[1769949885449,0.20867,2398.1,2397.5,0.16681023]
[1769949885851,0.20867,2398.1,2397.6,11.7322317]
[1769949886057,0.20867,2398.1,2397.7,0.16681023]
[1769949886351,0.20867,2398.1,2397.2,0.16645715]
[1769949886658,0.20867,2398.1,2397.4,0.16645715]
[1769949886856,0.20867,2398.1,2397.5,0.16645715]
[1769949887250,0.20867,2398.1,2396.5,2.085]
[1769949887251,0.20874,2397.4,2392.6,0.16645715]
[1769949887454,4.85022754,2394.5,2393.0,0.16645715]
[1769949887650,0.209,2394.4,2393.0,0.16645715]
[1769949887958,0.209,2394.4,2392.3,2.446]
[1769949888155,0.15582226,2394.3,2392.4,11.7322317]
[1769949888460,0.15582226,2394.3,2392.3,11.73750253]
[1769949888759,0.20905,2393.8,2392.7,11.7322317]
[1769949889257,0.20905,2393.8,2393.1,11.7322317]
[1769949889556,0.20905,2393.8,2392.4,2.446]
[1769949889859,0.20905,2393.8,2392.9,11.7322317]
[1769949890064,0.20905,2393.8,2393.0,0.14787707]
[1769949890358,0.20908,2393.5,2392.4,0.14787707]
[1769949890860,0.20908,2393.5,2392.5,0.14787707]
[1769949891159,0.15582226,2393.2,2392.3,0.00527083]
[1769949891551,0.2091,2393.2,2392.6,11.7322317]
[1769949891858,0.2091,2393.2,2392.9,0.02548982]
[1769949892260,0.15582226,2393.8,2393.0,11.48072885]
[1769949892560,0.15582226,2393.8,2392.9,0.02548982]
[1769949892960,0.15582226,2393.8,2393.3,0.02548982]
[1769949893258,0.34598444,2393.7,2392.5,0.14787707]
[1769949893559,0.20906,2393.7,2392.5,0.14787707]
[1769949893765,0.20906,2393.7,2392.7,0.14787707]
[1769949893960,0.20906,2393.7,2392.9,0.14787707]
[1769949894354,0.20906,2393.7,2393.0,11.48072885]
[1769949894755,0.20906,2393.7,2393.1,11.48072885]
[1769949894955,0.20906,2393.7,2393.0,11.48072885]
[1769949895458,0.20906,2393.7,2393.1,11.48072885]
[1769949895660,0.20906,2393.7,2393.0,11.48072885]
[1769949895963,0.20906,2393.7,2393.1,11.40808348]
[1769949896158,0.20906,2393.7,2392.9,0.14787707]
[1769949896159,0.20906,2393.7,2393.0,11.40808348]
[1769949896561,0.20906,2393.7,2393.1,11.40808348]
[1769949896764,0.20906,2393.7,2393.2,11.55596055]
[1769949896963,0.20906,2393.7,2393.2,0.14787707]
[1769949897166,0.20906,2393.7,2393.3,11.40808348]
[1769949897564,0.14450109,2394.2,2393.2,0.14787707]
[1769949897767,0.14450109,2394.2,2393.2,11.55596055]
[1769949897969,0.35353109,2394.0,2392.6,0.14787707]
[1769949898166,0.35353109,2394.0,2392.8,0.14787707]
[1769949898364,0.35353109,2394.0,2392.9,0.14787707]
[1769949898665,0.35353109,2394.0,2393.0,0.14787707]
[1769949898867,0.35353109,2394.0,2393.0,11.55596055]
[1769949899865,0.35353109,2394.0,2393.1,11.55596055]
[1769949900057,0.35353109,2394.0,2393.1,0.14787707]
[1769949900260,0.20903,2394.0,2393.3,11.40808348]
[1769949900459,0.20903,2394.0,2393.4,0.14787707]
[1769949900661,0.00429273,2394.4,2393.1,2.827]
[1769949900662,0.00429273,2394.4,2393.8,0.14787707]
[1769949900859,0.00429273,2394.4,2392.7,2.089]
[1769949900860,0.20897,2394.7,2394.1,0.14787707]
[1769949901260,0.20897,2394.7,2394.4,0.14787707]
[1769949901464,2.089,2395.3,2394.4,0.14787707]
[1769949901669,0.20891,2395.4,2394.7,0.14787707]
[1769949901869,0.00473137,2395.4,2394.8,11.40808348]
[1769949902070,0.21364137,2395.4,2395.1,11.55596055]
[1769949902273,0.15420946,2395.9,2394.8,11.40808348]
[1769949902470,0.15420946,2395.9,2394.7,0.15121033]
[1769949903275,0.20891,2395.4,2394.7,0.15121033]
[1769949903572,0.20891,2395.4,2394.8,0.14787707]
[1769949903773,0.20891,2395.4,2395.0,11.40808348]
[1769949904373,0.20891,2395.4,2395.1,11.40808348]
[1769949904573,0.20891,2395.4,2395.0,11.55596055]
[1769949905178,0.20891,2395.4,2395.1,11.40808348]
[1769949905573,0.00525448,2395.9,2395.3,11.55596055]
[1769949905776,0.00525448,2395.9,2395.3,11.40808348]
[1769949906076,0.20891,2395.4,2395.3,11.40808348]
[1769949906275,0.00525448,2395.9,2395.3,11.40808348]
[1769949906476,0.20891,2395.4,2395.3,11.40808348]
[1769949906678,0.00525448,2395.9,2395.3,11.40808348]
[1769949907071,0.00525448,2395.9,2395.4,11.40808348]
[1769949907277,0.00525448,2395.9,2395.4,0.15482146]
[1769949907582,0.00525448,2395.9,2395.7,11.40808348]
[1769949908074,0.20885,2396.1,2395.8,11.40808348]
[1769949908276,0.20885,2396.1,2395.7,11.40808348]
[1769949908474,0.20885,2396.1,2395.0,2.842]
[1769949908672,0.20885,2396.1,2395.4,11.40808348]
[1769949908972,0.14891591,2396.0,2395.0,2.842]
[1769949909174,0.15419938,2396.0,2395.2,11.40808348]
[1769949909478,0.15419938,2396.0,2395.1,14.25108348]
[1769949909776,0.15419938,2396.0,2395.3,11.40808348]
[1769949910072,4.77975859,2395.9,2395.3,10.93617494]
[1769949910278,4.77975859,2395.8,2395.4,10.93617494]
[1769949910478,4.63084268,2395.7,2395.3,10.93617494]
[1769949910776,4.63084268,2395.7,2395.4,10.93617494]
[1769949911178,4.63084268,2395.7,2395.6,10.93617494]
[1769949911373,4.63084268,2395.7,2395.5,10.93617494]
[1769949911679,0.21414347,2396.0,2395.6,10.93617494]
[1769949911978,4.6376514,2395.9,2395.5,11.0909964]
[1769949912171,4.6376514,2395.8,2395.5,11.0909964]
[1769949912369,36.44208906,2396.0,2395.7,10.93617494]
[1769949912575,4.64317785,2395.9,2395.5,11.0909964]
[1769949912775,0.21414347,2396.0,2395.5,11.0909964]
[1769949912776,4.64317785,2395.8,2395.5,11.0909964]
[1769949912976,0.21414347,2396.0,2395.7,10.93617494]
[1769949913172,4.64312381,2395.9,2395.8,5.7138123]
[1769949913381,4.64312381,2395.9,2395.7,5.7138123]
[1769949913581,4.64312381,2395.8,2395.5,0.15482146]
[1769949913783,36.44208906,2396.0,2395.7,5.7138123]
[1769949914081,4.5685677,2395.9,2395.7,5.7138123]
[1769949914384,4.5685677,2395.9,2395.2,0.15482146]
[1769949914385,0.21414347,2396.0,2395.8,5.7138123]
[1769949914577,4.57534537,2395.9,2395.6,5.7138123]
[1769949914881,4.57534537,2395.8,2395.6,5.7138123]
[1769949915180,4.57534537,2395.7,2395.2,0.15482146]
[1769949915380,4.57534537,2395.6,2395.2,0.15482146]
[1769949915581,36.44208906,2396.0,2395.6,5.7138123]
[1769949915778,4.39502727,2395.9,2395.8,5.7138123]
[1769949915975,30.72827676,2396.2,2395.4,0.15482146]
[1769949916181,0.20886,2396.0,2395.4,0.15482146]
[1769949916683,4.85340434,2396.3,2395.4,0.15482146]
[1769949916887,0.14891591,2396.4,2395.4,0.15482146]
[1769949917083,0.16403798,2396.2,2395.1,2.843]
[1769949917284,4.85340434,2396.0,2395.2,2.45]
[1769949917880,4.85340434,2396.1,2395.2,2.45]
[1769949918480,4.85340434,2396.2,2395.2,2.45]
[1769949919384,5.06223434,2396.3,2395.2,2.45]
[1769949920483,0.20883,2396.3,2395.2,2.45]
[1769949921386,0.37259557,2396.3,2395.2,2.45]
[1769949921583,0.37260557,2396.2,2394.7,0.00333326]
[1769949921886,0.16376557,2396.1,2394.8,2.45]
[1769949924387,0.16480531,2396.0,2394.8,2.45]
[1769949925087,5.05678776,2396.0,2394.8,2.45]
[1769949925688,0.16480531,2395.8,2394.8,2.45]
[1769949925891,0.16480531,2395.8,2394.7,0.00333326]
[1769949926089,0.16480531,2395.6,2394.7,0.00333326]
[1769949926486,5.05678776,2395.6,2394.7,0.00333326]
[1769949927988,4.05576077,2395.5,2394.7,0.00333326]
[1769949928188,8.94774322,2395.4,2394.7,0.00333326]
[1769949928391,4.05576077,2395.3,2394.7,0.00333326]
[1769949928587,4.89198245,2395.4,2394.7,0.00333326]
[1769949928588,4.05576077,2395.2,2394.7,0.00333326]
[1769949928787,4.05576077,2395.1,2394.7,0.00333326]
[1769949928989,4.05576077,2395.0,2394.7,0.00333326]
[1769949929191,2.68220964,2394.9,2394.7,0.00333326]
[1769949929489,4.89198245,2395.4,2394.7,0.00333326]
[1769949931493,4.89198245,2395.3,2394.7,0.00333326]
[1769949932601,5.05536778,2395.0,2393.8,2.088]
[1769949932799,4.89198245,2394.9,2394.0,2.45]
[1769949932998,5.05536778,2395.0,2394.0,2.45]
[1769949933502,5.05536778,2395.0,2394.0,2.45446884]
[1769949934205,0.16335002,2394.7,2393.7,2.088]
[1769949934506,0.16335002,2394.6,2393.5,2.088]
[1769949934704,0.16335002,2394.6,2393.6,2.45]
[1769949934904,4.89198245,2394.7,2393.6,2.45]
[1769949935395,4.8960628,2394.7,2393.6,2.45361939]
[1769949936198,0.00408035,2394.7,2393.6,2.45361939]
[1769949941211,3.93052938,2394.6,2393.6,2.45361939]
[1769949941512,2.91412409,2394.5,2393.6,2.45361939]
[1769949941716,2.46369577,2395.3,2393.6,2.45361939]
[1769949942010,2.46369577,2395.2,2393.6,2.45361939]
[1769949942205,2.46369577,2395.3,2393.7,0.00130171]
[1769949942802,2.46862197,2395.3,2393.7,0.00130171]
[1769949944417,0.0049262,2395.3,2393.7,0.00130171]
[1769949949416,0.16854128,2395.3,2393.7,0.00130171]
[1769949949920,0.0049262,2395.3,2394.0,4.171]
[1769949950218,0.16361508,2395.7,2394.0,4.171]
[1769949950511,2.46369577,2395.9,2394.2,4.988658]
[1769949950717,2.62759472,2396.1,2394.3,4.988658]
[1769949950913,0.16389895,2396.1,2394.4,2.45]
[1769949951109,0.16762301,2396.1,2394.4,2.45]
[1769949951314,0.16762301,2396.1,2394.5,2.088]
[1769949952520,0.16762301,2396.1,2394.7,3.74054881]